[Event "Titled Tuesday Blitz August 16 Early 2022"]
[White "Carrasco Miranda, Andres"]
[Black "Omariev, Maksim"]
[WhiteFideId "3405990"]
[BlackFideId "4193423"]
[WhiteElo "2177"]
[BlackElo "2304"]
[Result "0-1"]
[Round "09"]
[TimeControl "180+2"]
[Date "2022.08.18"]
[WhiteClock "0:00:00"]
[BlackClock "0:00:00"]

1. d4 {[%clk 0:00:00]}  d5 {[%clk 0:00:00]} 2. c4 {[%clk 0:00:00]}  e6 {[%clk 0:00:00]} 3. Nf3 {[%clk 0:00:00]}  Nf6 {[%clk 0:00:00]} 4. g3 {[%clk 0:00:00]}  Be7 {[%clk 0:00:00]} 5. Bg2 {[%clk 0:00:00]}  O-O {[%clk 0:00:00]} 6. O-O {[%clk 0:00:00]}  dxc4 {[%clk 0:00:00]} 7. Qc2 {[%clk 0:00:00]}  a6 {[%clk 0:00:00]} 8. a4 {[%clk 0:00:00]}  Nc6 {[%clk 0:00:00]} 9. Qxc4 {[%clk 0:00:00]}  Nb4 {[%clk 0:00:00]} 10. Nc3 {[%clk 0:00:00]}  b5 {[%clk 0:00:00]} 11. Qb3 {[%clk 0:00:00]}  bxa4 {[%clk 0:00:00]} 12. Nxa4 {[%clk 0:00:00]}  Bb7 {[%clk 0:00:00]} 13. Nc3 {[%clk 0:00:00]}  c5 {[%clk 0:00:00]} 14. Rd1 {[%clk 0:00:00]}  Qc8 {[%clk 0:00:00]} 15. dxc5 {[%clk 0:00:00]}  Qxc5 {[%clk 0:00:00]} 16. Be3 {[%clk 0:00:00]}  Qh5 {[%clk 0:00:00]} 17. Rd4 {[%clk 0:00:00]}  Nfd5 {[%clk 0:00:00]} 18. Nxd5 {[%clk 0:00:00]}  Bxd5 {[%clk 0:00:00]} 19. Qa4 {[%clk 0:00:00]}  a5 {[%clk 0:00:00]} 20. Bd2 {[%clk 0:00:00]}  Rfb8 {[%clk 0:00:00]} 21. Bc3 {[%clk 0:00:00]}  h6 {[%clk 0:00:00]} 22. Rad1 {[%clk 0:00:00]}  Bc5 {[%clk 0:00:00]} 23. Rh4 {[%clk 0:00:00]}  Qg6 {[%clk 0:00:00]} 24. Ne5 {[%clk 0:00:00]}  Qh7 {[%clk 0:00:00]} 25. Nd7 {[%clk 0:00:00]}  Rc8 {[%clk 0:00:00]} 26. Nxc5 {[%clk 0:00:00]}  Rxc5 {[%clk 0:00:00]} 27. Bxb4 {[%clk 0:00:00]}  axb4 {[%clk 0:00:00]} 28. Qxb4 {[%clk 0:00:00]}  Rac8 {[%clk 0:00:00]} 29. Bxd5 {[%clk 0:00:00]}  exd5 {[%clk 0:00:00]} 30. Rhd4 {[%clk 0:00:00]}  Qf5 {[%clk 0:00:00]} 31. e3 {[%clk 0:00:00]}  Qe6 {[%clk 0:00:00]} 32. b3 {[%clk 0:00:00]}  Qc6 {[%clk 0:00:00]} 33. Qd2 {[%clk 0:00:00]}  Rb5 {[%clk 0:00:00]} 34. Qd3 {[%clk 0:00:00]}  Qb7 {[%clk 0:00:00]} 35. Rxd5 {[%clk 0:00:00]}  Rxb3 {[%clk 0:00:00]} 36. Rd8+ {[%clk 0:00:00]}  Rxd8 {[%clk 0:00:00]} 37. Qxd8+ {[%clk 0:00:00]}  Kh7 {[%clk 0:00:00]} 38. Qd5 {[%clk 0:00:00]}  Qxd5 {[%clk 0:00:00]} 39. Rxd5 {[%clk 0:00:00]}  g6 {[%clk 0:00:00]} 40. g4 {[%clk 0:00:00]}  Kg7 {[%clk 0:00:00]} 41. Kg2 {[%clk 0:00:00]}  Rb4 {[%clk 0:00:00]} 42. Rd4 {[%clk 0:00:00]}  Rb5 {[%clk 0:00:00]} 43. h4 {[%clk 0:00:00]}  Ra5 {[%clk 0:00:00]} 44. Kg3 {[%clk 0:00:00]}  h5 {[%clk 0:00:00]} 45. g5 {[%clk 0:00:00]}  Rf5 {[%clk 0:00:00]} 46. f4 {[%clk 0:00:00]}  Ra5 {[%clk 0:00:00]} 47. Rd3 {[%clk 0:00:00]}  Ra1 {[%clk 0:00:00]} 48. f5 {[%clk 0:00:00]}  Rg1+ {[%clk 0:00:00]} 49. Kf4 {[%clk 0:00:00]}  Rf1+ {[%clk 0:00:00]} 50. Ke4 {[%clk 0:00:00]}  Rxf5 {[%clk 0:00:00]} 51. Rd4 {[%clk 0:00:00]}  Rf1 {[%clk 0:00:00]} 52. Kd3 {[%clk 0:00:00]}  Rg1 {[%clk 0:00:00]} 53. Rf4 {[%clk 0:00:00]}  Kf8 {[%clk 0:00:00]} 54. Ke4 {[%clk 0:00:00]}  Ke7 {[%clk 0:00:00]} 55. Kf3 {[%clk 0:00:00]}  Ke6 {[%clk 0:00:00]} 56. Rf6+ {[%clk 0:00:00]}  Ke7 {[%clk 0:00:00]} 57. Rf4 {[%clk 0:00:00]}  Rh1 {[%clk 0:00:00]} 58. Kg2 {[%clk 0:00:00]}  Re1 {[%clk 0:00:00]} 59. Kf2 {[%clk 0:00:00]}  Ra1 {[%clk 0:00:00]} 60. Kf3 {[%clk 0:00:00]}  Ra3 {[%clk 0:00:00]} 61. Re4+ {[%clk 0:00:00]}  Kd6 {[%clk 0:00:00]} 62. Rf4 {[%clk 0:00:00]}  Ke7 {[%clk 0:00:00]} 63. Re4+ {[%clk 0:00:00]}  Kf8 {[%clk 0:00:00]} 64. Rf4 {[%clk 0:00:00]}  Ra1 {[%clk 0:00:00]} 65. Rb4 {[%clk 0:00:00]}  Ra5 {[%clk 0:00:00]} 66. Rb8+ {[%clk 0:00:00]}  Ke7 {[%clk 0:00:00]} 67. Rb7+ {[%clk 0:00:00]}  Ke6 {[%clk 0:00:00]} 68. Rb6+ {[%clk 0:00:00]}  Ke7 {[%clk 0:00:00]} 69. Rb7+ {[%clk 0:00:00]}  Kf8 {[%clk 0:00:00]} 70. Rb8+ {[%clk 0:00:00]}  Kg7 {[%clk 0:00:00]} 71. Rb4 {[%clk 0:00:00]}  Rf5+ {[%clk 0:00:00]} 72. Rf4 {[%clk 0:00:00]}  Re5 {[%clk 0:00:00]} 73. Ra4 {[%clk 0:00:00]}  Kf8 {[%clk 0:00:00]} 74. Ra8+ {[%clk 0:00:00]}  Ke7 {[%clk 0:00:00]} 75. Ra7+ {[%clk 0:00:00]}  Ke6 {[%clk 0:00:00]} 76. Ra6+ {[%clk 0:00:00]}  Ke7 {[%clk 0:00:00]} 77. Ra7+ {[%clk 0:00:00]}  Kf8 {[%clk 0:00:00]} 78. Ra8+ {[%clk 0:00:00]}  Kg7 {[%clk 0:00:00]} 79. Ra4 {[%clk 0:00:00]}  Rb5 {[%clk 0:00:00]} 80. Rc4 {[%clk 0:00:00]}  Rb1 {[%clk 0:00:00]} 81. Ra4 {[%clk 0:00:00]}  Rh1 {[%clk 0:00:00]} 82. Rb4 {[%clk 0:00:00]}  Rh3+ {[%clk 0:00:00]} 83. Kf2 {[%clk 0:00:00]}  Rh2+ {[%clk 0:00:00]} 84. Kg3 {[%clk 0:00:00]}  Re2 {[%clk 0:00:00]} 85. Kf3 {[%clk 0:00:00]}  Re1 {[%clk 0:00:00]} 86. Ra4 {[%clk 0:00:00]}  Rf1+ {[%clk 0:00:00]} 87. Kg3 {[%clk 0:00:00]}  Kf8 {[%clk 0:00:00]} 88. Ra8+ {[%clk 0:00:00]}  Ke7 {[%clk 0:00:00]} 89. Ra7+ {[%clk 0:00:00]}  Ke6 {[%clk 0:00:00]} 90. Ra4 {[%clk 0:00:00]}  Ke5 {[%clk 0:00:00]} 91. Kg2 {[%clk 0:00:00]}  Re1 {[%clk 0:00:00]} 92. Kf3 {[%clk 0:00:00]}  Rf1+ {[%clk 0:00:00]} 93. Kg2 {[%clk 0:00:00]}  Rf5 {[%clk 0:00:00]} 94. Rb4 {[%clk 0:00:00]}  Kd5 {[%clk 0:00:00]} 95. Ra4 {[%clk 0:00:00]}  Re5 {[%clk 0:00:00]} 96. Kf3 {[%clk 0:00:00]}  Rf5+ {[%clk 0:00:00]} 97. Kg3 {[%clk 0:00:00]}  Rf1 {[%clk 0:00:00]} 98. Kg2 {[%clk 0:00:00]}  Re1 {[%clk 0:00:00]} 99. Kf3 {[%clk 0:00:00]}  Ke5 {[%clk 0:00:00]} 0-1


[Site "https://www.chess.com"]

[Event "Titled Tuesday Blitz August 16 Early 2022"]
[White "Costachi, Mihnea"]
[Black "Skawinski, Arkadiusz"]
[WhiteFideId "1217518"]
[BlackFideId "1126415"]
[WhiteElo "2437"]
[BlackElo "2149"]
[Result "1-0"]
[Round "09"]
[TimeControl "180+1"]
[Date "2022.08.16"]
[WhiteClock "0:00:34"]
[BlackClock "0:00:09"]

1. e4 {[%clk 0:03:00]}  e6 {[%clk 0:03:00]} 2. Qe2 {[%clk 0:02:59]}  e5 {[%clk 0:02:59]} 3. Nc3 {[%clk 0:02:58]}  Nc6 {[%clk 0:02:58]} 4. Nf3 {[%clk 0:02:58]}  Nf6 {[%clk 0:02:58]} 5. g3 {[%clk 0:02:55]}  Bc5 {[%clk 0:02:56]} 6. Bg2 {[%clk 0:02:55]}  O-O {[%clk 0:02:56]} 7. O-O {[%clk 0:02:55]}  a6 {[%clk 0:02:56]} 8. d3 {[%clk 0:02:55]}  d6 {[%clk 0:02:54]} 9. h3 {[%clk 0:02:55]}  Re8 {[%clk 0:02:46]} 10. Be3 {[%clk 0:02:55]}  Nd4 {[%clk 0:02:47]} 11. Qd1 {[%clk 0:02:49]}  Nc6 {[%clk 0:02:40]} 12. Nh4 {[%clk 0:02:41]}  Ne7 {[%clk 0:02:27]} 13. d4 {[%clk 0:02:39]}  exd4 {[%clk 0:02:27]} 14. Bxd4 {[%clk 0:02:40]}  Bxd4 {[%clk 0:02:24]} 15. Qxd4 {[%clk 0:02:40]}  Nc6 {[%clk 0:02:22]} 16. Qd2 {[%clk 0:02:41]}  Be6 {[%clk 0:02:16]} 17. f4 {[%clk 0:02:38]}  Qd7 {[%clk 0:02:11]} 18. Kh2 {[%clk 0:02:37]}  Bc4 {[%clk 0:02:05]} 19. Rfe1 {[%clk 0:02:37]}  a5 {[%clk 0:02:05]} 20. b3 {[%clk 0:02:35]}  Ba6 {[%clk 0:02:05]} 21. Rad1 {[%clk 0:02:35]}  Rad8 {[%clk 0:02:01]} 22. Nf5 {[%clk 0:02:30]}  Ne7 {[%clk 0:02:01]} 23. Nd4 {[%clk 0:02:24]}  Ng6 {[%clk 0:01:55]} 24. Nd5 {[%clk 0:02:24]}  Nxd5 {[%clk 0:01:46]} 25. exd5 {[%clk 0:02:25]}  b6 {[%clk 0:01:39]} 26. Nc6 {[%clk 0:02:22]}  Ra8 {[%clk 0:01:39]} 27. c4 {[%clk 0:02:22]}  Rxe1 {[%clk 0:01:38]} 28. Rxe1 {[%clk 0:02:22]}  Re8 {[%clk 0:01:38]} 29. Re3 {[%clk 0:02:14]}  Kf8 {[%clk 0:01:27]} 30. Qe2 {[%clk 0:02:09]}  Rxe3 {[%clk 0:01:27]} 31. Qxe3 {[%clk 0:02:09]}  Qe8 {[%clk 0:01:27]} 32. Qd2 {[%clk 0:02:03]}  Bb7 {[%clk 0:01:26]} 33. Nd4 {[%clk 0:02:04]}  Bc8 {[%clk 0:01:26]} 34. Kg1 {[%clk 0:02:03]}  Bd7 {[%clk 0:01:26]} 35. Kf2 {[%clk 0:02:03]}  Qe7 {[%clk 0:01:23]} 36. a3 {[%clk 0:02:01]}  Qf6 {[%clk 0:01:20]} 37. Kg1 {[%clk 0:01:57]}  Ne7 {[%clk 0:01:16]} 38. b4 {[%clk 0:01:48]}  axb4 {[%clk 0:01:16]} 39. axb4 {[%clk 0:01:48]}  Nf5 {[%clk 0:01:16]} 40. Nxf5 {[%clk 0:01:49]}  Qxf5 {[%clk 0:01:15]} 41. Qa2 {[%clk 0:01:44]}  Qd3 {[%clk 0:01:11]} 42. Kh2 {[%clk 0:01:41]}  h5 {[%clk 0:01:07]} 43. h4 {[%clk 0:01:41]}  Bg4 {[%clk 0:00:57]} 44. c5 {[%clk 0:01:41]}  bxc5 {[%clk 0:00:55]} 45. bxc5 {[%clk 0:01:42]}  Bf3 {[%clk 0:00:47]} 46. cxd6 {[%clk 0:01:34]}  cxd6 {[%clk 0:00:45]} 47. Qa8+ {[%clk 0:01:34]}  Ke7 {[%clk 0:00:45]} 48. Qb7+ {[%clk 0:01:35]}  Kf6 {[%clk 0:00:45]} 49. Qc6 {[%clk 0:01:27]}  Bxg2 {[%clk 0:00:36]} 50. Qxd6+ {[%clk 0:01:27]}  Kf5 {[%clk 0:00:36]} 51. Qe5+ {[%clk 0:01:09]}  Kg4 {[%clk 0:00:35]} 52. Kxg2 {[%clk 0:01:04]}  Qd2+ {[%clk 0:00:28]} 53. Kf1 {[%clk 0:00:57]}  Qd1+ {[%clk 0:00:11]} 54. Kf2 {[%clk 0:00:56]}  Qf3+ {[%clk 0:00:11]} 55. Ke1 {[%clk 0:00:57]}  Qxg3+ {[%clk 0:00:11]} 56. Kd2 {[%clk 0:00:57]}  Qf2+ {[%clk 0:00:11]} 57. Kd3 {[%clk 0:00:48]}  Qf1+ {[%clk 0:00:10]} 58. Kd4 {[%clk 0:00:45]}  Qd1+ {[%clk 0:00:10]} 59. Kc5 {[%clk 0:00:46]}  Qc2+ {[%clk 0:00:10]} 60. Kb6 {[%clk 0:00:45]}  Qb3+ {[%clk 0:00:10]} 61. Kc7 {[%clk 0:00:46]}  Qc4+ {[%clk 0:00:10]} 62. Kd8 {[%clk 0:00:45]}  Kxh4 {[%clk 0:00:11]} 63. Qg5+ {[%clk 0:00:43]}  Kh3 {[%clk 0:00:10]} 64. Qxh5+ {[%clk 0:00:44]}  Kg3 {[%clk 0:00:11]} 65. Qg5+ {[%clk 0:00:44]}  Kf3 {[%clk 0:00:11]} 66. Qe5 {[%clk 0:00:41]}  f6 {[%clk 0:00:11]} 67. Qf5 {[%clk 0:00:39]}  Ke3 {[%clk 0:00:09]} 68. d6 {[%clk 0:00:35]}  Qg8+ {[%clk 0:00:09]} 69. Ke7 {[%clk 0:00:34]} 1-0


[Site "https://www.chess.com"]

[Event "Titled Tuesday Blitz August 16 Early 2022"]
[White "Csonka, Balazs"]
[Black "Rostomyan, Mikayel"]
[WhiteFideId "742910"]
[BlackFideId "13313754"]
[WhiteElo "2404"]
[BlackElo "1426"]
[Result "1-0"]
[Round "09"]
[TimeControl "180+1"]
[Date "2022.08.16"]
[WhiteClock "0:00:07"]
[BlackClock "0:00:15"]

1. Nf3 {[%clk 0:02:59]}  d5 {[%clk 0:02:56]} 2. c4 {[%clk 0:02:57]}  c6 {[%clk 0:02:53]} 3. d4 {[%clk 0:02:55]}  Bf5 {[%clk 0:02:50]} 4. Qb3 {[%clk 0:02:44]}  Qb6 {[%clk 0:02:38]} 5. cxd5 {[%clk 0:02:43]}  Qxb3 {[%clk 0:02:37]} 6. axb3 {[%clk 0:02:44]}  cxd5 {[%clk 0:02:37]} 7. Nc3 {[%clk 0:02:40]}  e6 {[%clk 0:02:36]} 8. Nb5 {[%clk 0:02:34]}  Bb4+ {[%clk 0:02:30]} 9. Bd2 {[%clk 0:02:30]}  Bxd2+ {[%clk 0:02:29]} 10. Kxd2 {[%clk 0:02:30]}  Kd8 {[%clk 0:02:20]} 11. Ne5 {[%clk 0:00:57]}  Nh6 {[%clk 0:02:15]} 12. Nd6 {[%clk 0:00:45]}  Ke7 {[%clk 0:02:11]} 13. Nxb7 {[%clk 0:00:43]}  f6 {[%clk 0:02:05]} 14. Nd3 {[%clk 0:00:40]}  Nc6 {[%clk 0:02:04]} 15. e3 {[%clk 0:00:39]}  Rhb8 {[%clk 0:01:58]} 16. Nbc5 {[%clk 0:00:30]}  Nf7 {[%clk 0:01:49]} 17. Be2 {[%clk 0:00:28]}  Nd6 {[%clk 0:01:47]} 18. Rhc1 {[%clk 0:00:29]}  Nb4 {[%clk 0:01:35]} 19. Nxb4 {[%clk 0:00:23]}  Rxb4 {[%clk 0:01:36]} 20. f3 {[%clk 0:00:22]}  a5 {[%clk 0:01:33]} 21. Ra4 {[%clk 0:00:21]}  g5 {[%clk 0:01:11]} 22. Rca1 {[%clk 0:00:18]}  Rxa4 {[%clk 0:01:09]} 23. Rxa4 {[%clk 0:00:19]}  e5 {[%clk 0:01:02]} 24. b4 {[%clk 0:00:11]}  Rb8 {[%clk 0:01:01]} 25. bxa5 {[%clk 0:00:08]}  Rxb2+ {[%clk 0:01:01]} 26. Ke1 {[%clk 0:00:08]}  Bc2 {[%clk 0:00:41]} 27. Ra1 {[%clk 0:00:07]}  Nc8 {[%clk 0:00:35]} 28. a6 {[%clk 0:00:07]}  Na7 {[%clk 0:00:35]} 29. g3 {[%clk 0:00:04]}  Bf5 {[%clk 0:00:31]} 30. Rc1 {[%clk 0:00:04]}  Bc8 {[%clk 0:00:28]} 31. Nb7 {[%clk 0:00:03]}  Bxb7 {[%clk 0:00:22]} 32. Rc7+ {[%clk 0:00:04]}  Kd6 {[%clk 0:00:22]} 33. Rxb7 {[%clk 0:00:04]}  Rxb7 {[%clk 0:00:20]} 34. axb7 {[%clk 0:00:05]}  Nc6 {[%clk 0:00:20]} 35. Bb5 {[%clk 0:00:05]}  Nb8 {[%clk 0:00:21]} 36. dxe5+ {[%clk 0:00:03]}  fxe5 {[%clk 0:00:20]} 37. Kd2 {[%clk 0:00:03]}  Kc7 {[%clk 0:00:20]} 38. f4 {[%clk 0:00:03]}  gxf4 {[%clk 0:00:17]} 39. exf4 {[%clk 0:00:04]}  exf4 {[%clk 0:00:18]} 40. gxf4 {[%clk 0:00:05]}  Kxb7 {[%clk 0:00:13]} 41. Kc3 {[%clk 0:00:05]}  Nc6 {[%clk 0:00:13]} 42. Bxc6+ {[%clk 0:00:05]}  Kxc6 {[%clk 0:00:13]} 43. Kd4 {[%clk 0:00:05]}  Kd6 {[%clk 0:00:14]} 44. f5 {[%clk 0:00:06]}  h6 {[%clk 0:00:10]} 45. h3 {[%clk 0:00:06]}  h5 {[%clk 0:00:10]} 46. h4 {[%clk 0:00:06]}  Kc6 {[%clk 0:00:11]} 47. Ke5 {[%clk 0:00:06]}  Kc5 {[%clk 0:00:10]} 48. f6 {[%clk 0:00:07]}  d4 {[%clk 0:00:11]} 49. f7 {[%clk 0:00:07]}  Kc4 {[%clk 0:00:12]} 50. f8=Q {[%clk 0:00:07]}  d3 {[%clk 0:00:13]} 51. Qf3 {[%clk 0:00:07]}  Kc3 {[%clk 0:00:13]} 52. Qxh5 {[%clk 0:00:07]}  Kc2 {[%clk 0:00:14]} 53. Qf3 {[%clk 0:00:07]}  d2 {[%clk 0:00:15]} 54. Qe2 {[%clk 0:00:07]} 1-0


[Site "https://www.chess.com"]

[Event "Titled Tuesday Blitz August 16 Early 2022"]
[White "D`Arruda, Ricardo D."]
[Black "Senthil Maran K"]
[WhiteFideId "100692"]
[BlackFideId "25035681"]
[WhiteElo "2501"]
[BlackElo "2124"]
[Result "0-1"]
[Round "09"]
[TimeControl "180+1"]
[Date "2022.08.16"]
[WhiteClock "0:00:29"]
[BlackClock "0:00:27"]

1. Nf3 {[%clk 0:02:51]}  d5 {[%clk 0:02:59]} 2. d4 {[%clk 0:02:51]}  Nf6 {[%clk 0:02:58]} 3. c4 {[%clk 0:02:51]}  e6 {[%clk 0:02:58]} 4. e3 {[%clk 0:02:51]}  c6 {[%clk 0:02:52]} 5. Nc3 {[%clk 0:02:51]}  Nbd7 {[%clk 0:02:52]} 6. Bd3 {[%clk 0:02:51]}  dxc4 {[%clk 0:02:51]} 7. Bxc4 {[%clk 0:02:51]}  b5 {[%clk 0:02:52]} 8. Bb3 {[%clk 0:02:49]}  b4 {[%clk 0:02:48]} 9. Na4 {[%clk 0:02:48]}  Ba6 {[%clk 0:02:48]} 10. Qc2 {[%clk 0:02:43]}  Qa5 {[%clk 0:02:28]} 11. Ne5 {[%clk 0:02:16]}  Rc8 {[%clk 0:02:15]} 12. Nc4 {[%clk 0:02:07]}  Qh5 {[%clk 0:01:41]} 13. O-O {[%clk 0:02:04]}  Be7 {[%clk 0:01:37]} 14. Rd1 {[%clk 0:01:27]}  O-O {[%clk 0:01:35]} 15. e4 {[%clk 0:01:24]}  c5 {[%clk 0:01:02]} 16. d5 {[%clk 0:01:21]}  exd5 {[%clk 0:01:01]} 17. exd5 {[%clk 0:01:22]}  Nxd5 {[%clk 0:01:02]} 18. Rxd5 {[%clk 0:01:03]}  Qxd5 {[%clk 0:00:58]} 19. Bf4 {[%clk 0:00:41]}  Bxc4 {[%clk 0:00:34]} 20. Bxc4 {[%clk 0:00:42]}  Qc6 {[%clk 0:00:31]} 21. Re1 {[%clk 0:00:30]}  Bf6 {[%clk 0:00:30]} 22. Rd1 {[%clk 0:00:30]}  Nb6 {[%clk 0:00:28]} 23. Rd6 {[%clk 0:00:29]}  Qxa4 {[%clk 0:00:27]} 0-1


[Site "https://www.chess.com"]

[Event "Titled Tuesday Blitz August 16 Early 2022"]
[White "Demchenko, Anton"]
[Black "Ramirez Vido, Robert Yorisan"]
[WhiteFideId "4160258"]
[BlackFideId "3513823"]
[WhiteElo "2539"]
[BlackElo "2500"]
[Result "1-0"]
[Round "09"]
[TimeControl "180+1"]
[Date "2022.08.16"]
[WhiteClock "0:00:02"]
[BlackClock "0:00:05"]

1. e4 {[%clk 0:03:00]}  d6 {[%clk 0:02:58]} 2. d4 {[%clk 0:03:00]}  Nf6 {[%clk 0:02:58]} 3. Nc3 {[%clk 0:02:59]}  g6 {[%clk 0:02:59]} 4. Nf3 {[%clk 0:02:58]}  Bg7 {[%clk 0:02:59]} 5. Be3 {[%clk 0:02:57]}  c6 {[%clk 0:02:58]} 6. Qd2 {[%clk 0:02:55]}  b5 {[%clk 0:02:56]} 7. Bd3 {[%clk 0:02:54]}  Nbd7 {[%clk 0:02:50]} 8. a4 {[%clk 0:02:45]}  b4 {[%clk 0:02:50]} 9. Ne2 {[%clk 0:02:45]}  a5 {[%clk 0:02:50]} 10. c3 {[%clk 0:02:38]}  Rb8 {[%clk 0:02:38]} 11. O-O {[%clk 0:02:33]}  O-O {[%clk 0:02:38]} 12. Ng3 {[%clk 0:02:32]}  Ng4 {[%clk 0:02:30]} 13. Bg5 {[%clk 0:02:20]}  h6 {[%clk 0:02:14]} 14. h3 {[%clk 0:02:10]}  hxg5 {[%clk 0:02:10]} 15. hxg4 {[%clk 0:02:09]}  Nf6 {[%clk 0:02:04]} 16. Nh2 {[%clk 0:01:51]}  bxc3 {[%clk 0:01:58]} 17. bxc3 {[%clk 0:01:51]}  Nxg4 {[%clk 0:01:56]} 18. Nxg4 {[%clk 0:01:50]}  Bxg4 {[%clk 0:01:57]} 19. Qxg5 {[%clk 0:01:50]}  Bd7 {[%clk 0:01:50]} 20. Rab1 {[%clk 0:01:12]}  Bf6 {[%clk 0:01:39]} 21. Qh6 {[%clk 0:01:12]}  Bg7 {[%clk 0:01:39]} 22. Qe3 {[%clk 0:01:07]}  Qc7 {[%clk 0:01:37]} 23. Rbe1 {[%clk 0:00:56]}  c5 {[%clk 0:01:31]} 24. Bb1 {[%clk 0:00:20]}  Bxa4 {[%clk 0:01:21]} 25. e5 {[%clk 0:00:21]}  Bb5 {[%clk 0:01:19]} 26. e6 {[%clk 0:00:20]}  Bxf1 {[%clk 0:00:45]} 27. exf7+ {[%clk 0:00:19]}  Rxf7 {[%clk 0:00:46]} 28. Rxf1 {[%clk 0:00:19]}  cxd4 {[%clk 0:00:40]} 29. cxd4 {[%clk 0:00:20]}  Rxb1 {[%clk 0:00:28]} 30. Rxb1 {[%clk 0:00:10]}  Qa7 {[%clk 0:00:24]} 31. Ne2 {[%clk 0:00:10]}  a4 {[%clk 0:00:20]} 32. Ra1 {[%clk 0:00:10]}  e5 {[%clk 0:00:15]} 33. Qe4 {[%clk 0:00:09]}  exd4 {[%clk 0:00:13]} 34. Nf4 {[%clk 0:00:09]}  d3 {[%clk 0:00:12]} 35. Ra2 {[%clk 0:00:07]}  d2 {[%clk 0:00:11]} 36. Rxd2 {[%clk 0:00:06]}  a3 {[%clk 0:00:09]} 37. Qe6 {[%clk 0:00:05]}  Qd7 {[%clk 0:00:05]} 38. Qb3 {[%clk 0:00:02]} 1-0


[Site "https://www.chess.com"]

[Event "Titled Tuesday Blitz August 16 Early 2022"]
[White "Demin, Vladimir"]
[Black "Koniahli, Malek."]
[WhiteFideId "4167457"]
[BlackFideId "7603495"]
[WhiteElo "2430"]
[BlackElo "2097"]
[Result "1-0"]
[Round "09"]
[TimeControl "180+2"]
[Date "2022.08.18"]
[WhiteClock "0:00:00"]
[BlackClock "0:00:00"]

1. d4 {[%clk 0:00:00]}  Nf6 {[%clk 0:00:00]} 2. Nc3 {[%clk 0:00:00]}  d5 {[%clk 0:00:00]} 3. Bf4 {[%clk 0:00:00]}  c6 {[%clk 0:00:00]} 4. e3 {[%clk 0:00:00]}  Bf5 {[%clk 0:00:00]} 5. f3 {[%clk 0:00:00]}  e6 {[%clk 0:00:00]} 6. g4 {[%clk 0:00:00]}  Bg6 {[%clk 0:00:00]} 7. h4 {[%clk 0:00:00]}  h5 {[%clk 0:00:00]} 8. g5 {[%clk 0:00:00]}  Nfd7 {[%clk 0:00:00]} 9. Kf2 {[%clk 0:00:00]}  Na6 {[%clk 0:00:00]} 10. Nge2 {[%clk 0:00:00]}  Be7 {[%clk 0:00:00]} 11. Bg3 {[%clk 0:00:00]}  Bf5 {[%clk 0:00:00]} 12. Nf4 {[%clk 0:00:00]}  c5 {[%clk 0:00:00]} 13. Nb5 {[%clk 0:00:00]}  cxd4 {[%clk 0:00:00]} 14. exd4 {[%clk 0:00:00]}  g6 {[%clk 0:00:00]} 15. c3 {[%clk 0:00:00]}  O-O {[%clk 0:00:00]} 16. Bd3 {[%clk 0:00:00]}  Bxd3 {[%clk 0:00:00]} 17. Qxd3 {[%clk 0:00:00]}  Kg7 {[%clk 0:00:00]} 18. Rae1 {[%clk 0:00:00]}  Qb6 {[%clk 0:00:00]} 19. a4 {[%clk 0:00:00]}  Rae8 {[%clk 0:00:00]} 20. a5 {[%clk 0:00:00]}  Qc6 {[%clk 0:00:00]} 21. Nxa7 {[%clk 0:00:00]}  Nac5 {[%clk 0:00:00]} 22. Nxc6 {[%clk 0:00:00]}  Nxd3+ {[%clk 0:00:00]} 23. Nxd3 {[%clk 0:00:00]}  bxc6 {[%clk 0:00:00]} 24. b4 {[%clk 0:00:00]}  Ra8 {[%clk 0:00:00]} 25. Kg2 {[%clk 0:00:00]}  Rfc8 {[%clk 0:00:00]} 26. Ra1 {[%clk 0:00:00]}  Ra6 {[%clk 0:00:00]} 27. Rhe1 {[%clk 0:00:00]}  Kf8 {[%clk 0:00:00]} 28. Kf2 {[%clk 0:00:00]}  Ke8 {[%clk 0:00:00]} 29. Ke2 {[%clk 0:00:00]}  Bd8 {[%clk 0:00:00]} 30. Kd2 {[%clk 0:00:00]}  Bc7 {[%clk 0:00:00]} 31. Bxc7 {[%clk 0:00:00]}  Rxc7 {[%clk 0:00:00]} 32. Kc2 {[%clk 0:00:00]}  Rb7 {[%clk 0:00:00]} 33. Kb3 {[%clk 0:00:00]}  Kd8 {[%clk 0:00:00]} 34. Nc5 {[%clk 0:00:00]}  Nxc5+ {[%clk 0:00:00]} 35. dxc5 {[%clk 0:00:00]}  Kd7 {[%clk 0:00:00]} 36. c4 {[%clk 0:00:00]}  dxc4+ {[%clk 0:00:00]} 37. Kxc4 {[%clk 0:00:00]}  Ke7 {[%clk 0:00:00]} 38. Red1 {[%clk 0:00:00]}  Ra8 {[%clk 0:00:00]} 39. Rd6 {[%clk 0:00:00]}  Rab8 {[%clk 0:00:00]} 40. Ra4 {[%clk 0:00:00]}  Rc7 {[%clk 0:00:00]} 41. a6 {[%clk 0:00:00]}  Ra8 {[%clk 0:00:00]} 42. f4 {[%clk 0:00:00]}  Raa7 {[%clk 0:00:00]} 43. b5 {[%clk 0:00:00]}  cxb5+ {[%clk 0:00:00]} 44. Kxb5 {[%clk 0:00:00]}  Ra8 {[%clk 0:00:00]} 45. Rb6 {[%clk 0:00:00]}  Rac8 {[%clk 0:00:00]} 46. c6 {[%clk 0:00:00]}  Ra8 {[%clk 0:00:00]} 47. Rb7 {[%clk 0:00:00]}  Kd8 {[%clk 0:00:00]} 48. Kb6 {[%clk 0:00:00]}  Rac8 {[%clk 0:00:00]} 49. Rd4+ {[%clk 0:00:00]} 1-0


[Site "https://www.chess.com"]

[Event "Titled Tuesday Blitz August 16 Early 2022"]
[White "Eynullayev, Atilla"]
[Black "Zherebtsova, Alexandra"]
[WhiteFideId "13413570"]
[BlackFideId "24129518"]
[WhiteElo "1936"]
[BlackElo "2025"]
[Result "1-0"]
[Round "09"]
[TimeControl "180+2"]
[Date "2022.08.18"]
[WhiteClock "0:00:00"]
[BlackClock "0:00:00"]

1. e4 {[%clk 0:00:00]}  e5 {[%clk 0:00:00]} 2. Nf3 {[%clk 0:00:00]}  Nc6 {[%clk 0:00:00]} 3. Bc4 {[%clk 0:00:00]}  Nf6 {[%clk 0:00:00]} 4. d3 {[%clk 0:00:00]}  h6 {[%clk 0:00:00]} 5. O-O {[%clk 0:00:00]}  d6 {[%clk 0:00:00]} 6. c3 {[%clk 0:00:00]}  g6 {[%clk 0:00:00]} 7. Qb3 {[%clk 0:00:00]}  Qe7 {[%clk 0:00:00]} 8. a4 {[%clk 0:00:00]}  a6 {[%clk 0:00:00]} 9. a5 {[%clk 0:00:00]}  Bg7 {[%clk 0:00:00]} 10. Nbd2 {[%clk 0:00:00]}  O-O {[%clk 0:00:00]} 11. Re1 {[%clk 0:00:00]}  Rb8 {[%clk 0:00:00]} 12. Nf1 {[%clk 0:00:00]}  Bd7 {[%clk 0:00:00]} 13. Ne3 {[%clk 0:00:00]}  Na7 {[%clk 0:00:00]} 14. d4 {[%clk 0:00:00]}  Nb5 {[%clk 0:00:00]} 15. dxe5 {[%clk 0:00:00]}  dxe5 {[%clk 0:00:00]} 16. Qc2 {[%clk 0:00:00]}  c6 {[%clk 0:00:00]} 17. b3 {[%clk 0:00:00]}  Rfe8 {[%clk 0:00:00]} 18. Nd2 {[%clk 0:00:00]}  Nh5 {[%clk 0:00:00]} 19. Ndf1 {[%clk 0:00:00]}  Nf4 {[%clk 0:00:00]} 20. Ng3 {[%clk 0:00:00]}  Qg5 {[%clk 0:00:00]} 21. Nef1 {[%clk 0:00:00]}  h5 {[%clk 0:00:00]} 22. Nd2 {[%clk 0:00:00]}  h4 {[%clk 0:00:00]} 23. Nf3 {[%clk 0:00:00]}  Qf6 {[%clk 0:00:00]} 24. Bxf4 {[%clk 0:00:00]}  exf4 {[%clk 0:00:00]} 25. e5 {[%clk 0:00:00]}  Qe7 {[%clk 0:00:00]} 26. Ne4 {[%clk 0:00:00]}  Bf5 {[%clk 0:00:00]} 27. Qe2 {[%clk 0:00:00]}  h3 {[%clk 0:00:00]} 28. Neg5 {[%clk 0:00:00]}  hxg2 {[%clk 0:00:00]} 29. Bxf7+ {[%clk 0:00:00]}  Kf8 {[%clk 0:00:00]} 30. e6 {[%clk 0:00:00]}  Nxc3 {[%clk 0:00:00]} 31. Nh7# {[%clk 0:00:00]} 1-0


[Site "https://www.chess.com"]